fUST/lending_fUST_20251203
["ID","MTS","AMOUNT","RATE_DAILY","PERIOD"]
[395848201,1764730245155,-500.0,0.00011342,2]
[395848203,1764730245164,-500.0,0.00011342,2]
[395848206,1764730245174,-501.91780249,0.00011342,2]
[395848208,1764730245185,-542.3,0.00011342,2]
[395848210,1764730245195,-151.0,0.00011342,2]
[395848212,1764730245205,-151.0,0.00011342,2]
[395848214,1764730245214,-151.0,0.00011342,2]
[395848216,1764730245225,-151.0,0.00011342,2]
[395848218,1764730245235,-596.56,0.00011342,2]
[395848220,1764730245245,-520.20242923,0.00011342,2]
[395848222,1764730245254,-502.05718664,0.00011342,2]
[395848224,1764730245263,-501.72981402,0.00011342,2]
[395848226,1764730245273,-501.55735621,0.00011342,2]
[395848228,1764730245283,-502.49797195,0.00011342,2]
[395848230,1764730245293,-502.12337197,0.00011342,2]
[395848232,1764730245303,-500.0,0.00011342,2]
[395848234,1764730245312,-530.48,0.00011342,2]
[395848236,1764730245323,-503.76567426,0.00011342,2]
[395848238,1764730245334,-292.47283059,0.00011342,2]
[395848240,1764730245344,-500.0,0.00011342,2]
[395848242,1764730245354,-948.52,0.00011342,2]
[395848244,1764730245364,-500.0,0.00011342,2]
[395848246,1764730245373,-681.58,0.00011342,2]
[395848248,1764730245382,-500.0,0.00011342,2]
[395848250,1764730245392,-502.85918937,0.00011342,2]
[395848253,1764730245403,-500.0,0.00011342,2]
[395848255,1764730245412,-151.0,0.00011342,2]
[395848257,1764730245422,-151.0,0.00011342,2]
[395848259,1764730245431,-151.0,0.00011342,2]
[395848261,1764730245440,-245.789108,0.00011342,2]
[395848263,1764730245450,-61826.1155482,0.00011344,2]
[395848265,1764730245459,-151.0,0.00011344,2]
[395848267,1764730245468,-151.474473,0.00011344,2]
[395848269,1764730245477,-151.0,0.00011344,2]
[395848271,1764730245487,-151.0,0.00011344,2]
[395848273,1764730245496,-151.0,0.00011344,2]
[395848275,1764730245505,-151.0,0.00011344,2]
[395848277,1764730245514,-187.021305,0.00011344,2]
[395848279,1764730245524,-192.606809,0.00011344,2]
[395848281,1764730245533,-152.263613,0.00011346,2]
[395848283,1764730245543,-151.680152,0.00011346,2]
[395848285,1764730245552,-505.60903494,0.00011346,2]
[395848287,1764730245561,-500.0,0.00011347,2]
[395848289,1764730245571,-500.0,0.00011347,2]
[395848291,1764730245580,-152.055191,0.00011347,2]
[395848293,1764730245589,-152.105896,0.00011347,2]
[395848295,1764730245599,-151.0,0.00011347,2]
[395848297,1764730245609,-151.0,0.00011347,2]
[395848299,1764730245618,-151.0,0.00011348,2]
[395848301,1764730245627,-209.40437684,0.00011386,2]
[395848303,1764730245636,-157.74207793,0.00011425,2]
[395848305,1764730245645,-217.15233878,0.00011441,2]
[395848307,1764730245655,-225.18697532,0.00011496,2]
[395848309,1764730245664,-154.9271494,0.00011507,2]
[395848311,1764730245673,-161.3585948,0.00011507,2]
[395848313,1764730245683,-237.85656026,0.00011532,2]
[395848315,1764730245692,-1003.48806897,0.00011532,2]
[395848317,1764730245701,-151.0,0.00011532,2]
[395848319,1764730245711,-151.0,0.00011532,2]
[395848321,1764730245720,-225.22249849,0.00011532,2]
[395848323,1764730245729,-233.51889341,0.00011551,2]
[395848325,1764730245738,-300.0,0.00011579,2]
[395848327,1764730245748,-300.0,0.00011579,2]
[395848329,1764730245758,-300.0,0.00011579,2]
[395848331,1764730245767,-300.0,0.00011579,2]
[395848333,1764730245777,-300.0,0.00011579,2]
[395848335,1764730245786,-300.0,0.00011579,2]
[395848337,1764730245796,-300.0,0.00011579,2]
[395848339,1764730245807,-300.0,0.00011579,2]
[395848341,1764730245816,-300.0,0.00011579,2]
[395848343,1764730245825,-300.0,0.00011579,2]
[395848345,1764730245834,-300.0,0.00011579,2]
[395848347,1764730245844,-300.0,0.00011579,2]
[395848349,1764730245853,-300.0,0.00011579,2]
[395848351,1764730245862,-300.0,0.00011579,2]
[395848353,1764730245872,-300.0,0.00011579,2]
[395848355,1764730245882,-242.15909246,0.00011606,2]
[395848357,1764730245891,-500.0,0.00011607,2]
[395848359,1764730245901,-513.39,0.00011607,2]
[395848361,1764730245911,-157.74207793,0.00011607,2]
[395848363,1764730245925,-2188.59,0.00011608,2]
[395848365,1764730245935,-914.87,0.00011608,2]
[395848367,1764730245954,-757.21,0.00011608,2]
[395848369,1764730245968,-631.43,0.00011608,2]
[395848371,1764730245978,-500.0,0.00011608,2]
[395848373,1764730245987,-5715.04,0.00011608,2]
[395848376,1764730245997,-3800.0,0.00011608,2]
[395848377,1764730246007,-4190.39,0.00011608,2]
[395848379,1764730246017,-500.0,0.00011608,2]
[395848381,1764730246026,-500.0,0.00011608,2]
[395848383,1764730246036,-906.02,0.00011608,2]
[395848385,1764730246045,-500.0,0.00011608,2]
[395848387,1764730246055,-593.92,0.00011608,2]
[395848389,1764730246064,-1238.71,0.00011608,2]
[395848392,1764730246075,-949.72,0.00011608,2]
[395848394,1764730246084,-500.0,0.00011608,2]
[395848396,1764730246093,-905.02,0.00011608,2]
[395848398,1764730246103,-500.0,0.00011608,2]
[395848400,1764730246112,-500.0,0.00011611,2]
[395848403,1764730246121,-500.0,0.00011611,2]
[395848406,1764730246131,-535.86,0.00011611,2]
[395848408,1764730246142,-500.0,0.00011611,2]
[395848411,1764730246156,-500.0,0.00011611,2]
[395848413,1764730246165,-500.0,0.00011611,2]
[395848415,1764730246175,-500.0,0.00011611,2]
[395848417,1764730246186,-500.0,0.00011611,2]
[395848419,1764730246195,-594.2124904,0.00011611,2]
[395848421,1764730246205,-608.32,0.00011611,2]
[395848423,1764730246215,-500.0,0.00011611,2]
[395848425,1764730246225,-500.0,0.00011611,2]
[395848427,1764730246235,-500.0,0.00011611,2]
[395848429,1764730246244,-500.0,0.00011611,2]
[395848431,1764730246253,-500.0,0.00011611,2]
[395848433,1764730246263,-500.0,0.00011611,2]
[395848435,1764730246272,-500.0,0.00011611,2]
[395848437,1764730246281,-500.0,0.00011611,2]
[395848439,1764730246291,-532.06,0.00011611,2]
[395848441,1764730246299,-500.0,0.00011611,2]
[395848443,1764730246309,-500.0,0.00011611,2]
[395848445,1764730246319,-500.0,0.00011611,2]
[395848447,1764730246328,-500.0,0.00011611,2]
[395848449,1764730246338,-500.0,0.00011611,2]
[395848451,1764730246347,-500.0,0.00011611,2]
[395848453,1764730246356,-504.77189575,0.00011611,2]
[395848454,1764730246368,-614.03,0.00011611,2]
[395848457,1764730246379,-151.0,0.00011612,2]
[395848459,1764730246389,-500.0,0.00011612,2]
[395848461,1764730246399,-610.9,0.00011612,2]
[395848463,1764730246408,-1749.59,0.00011612,2]
[395848465,1764730246418,-1075.22,0.00011612,2]
[395848467,1764730246428,-500.0,0.00011612,2]
[395848469,1764730246438,-608.23,0.00011612,2]
[395848471,1764730246448,-500.0,0.00011612,2]
[395848472,1764730246457,-1223.7,0.00011612,2]
[395848474,1764730246467,-500.0,0.00011612,2]
[395848476,1764730246475,-2923.2,0.00011612,2]
[395848478,1764730246485,-500.0,0.00011612,2]
[395848480,1764730246495,-861.17,0.00011612,2]
[395848482,1764730246504,-1320.57,0.00011612,2]
[395848484,1764730246514,-763.78,0.00011612,2]
[395848486,1764730246523,-1209.37,0.00011612,2]
[395848488,1764730246533,-918.58,0.00011612,2]
[395848490,1764730246542,-711.57,0.00011612,2]
[395848492,1764730246552,-1558.39,0.00011612,2]
[395848494,1764730246562,-856.65,0.00011612,2]
[395848496,1764730246571,-1721.22,0.00011612,2]
[395848498,1764730246581,-1021.78,0.00011612,2]
[395848500,1764730246591,-1421.96,0.00011612,2]
[395848502,1764730246600,-655.14,0.00011612,2]
[395848504,1764730246610,-500.0,0.00011612,2]
[395848506,1764730246620,-500.0,0.00011612,2]
[395848508,1764730246629,-1287.38,0.00011612,2]
[395848510,1764730246639,-1236.54,0.00011612,2]
[395848512,1764730246649,-1659.16,0.00011612,2]
[395848514,1764730246659,-3508.15,0.00011612,2]
[395848516,1764730246668,-1415.16,0.00011612,2]
[395848518,1764730246678,-500.0,0.00011612,2]
[395848520,1764730246687,-1642.04,0.00011612,2]
[395848522,1764730246698,-1741.69,0.00011612,2]
[395848524,1764730246708,-1323.83,0.00011612,2]
[395848526,1764730246718,-718.16,0.00011612,2]
[395848528,1764730246727,-642.07,0.00011612,2]
[395848530,1764730246737,-527.14,0.00011612,2]
[395848532,1764730246746,-500.0,0.00011612,2]
[395848534,1764730246755,-5919.28,0.00011612,2]
[395848536,1764730246766,-1431.66,0.00011612,2]
[395848538,1764730246776,-982.77,0.00011612,2]
[395848540,1764730246786,-1254.35,0.00011612,2]
[395848542,1764730246795,-1340.61,0.00011612,2]
[395848544,1764730246804,-1202.43,0.00011613,2]
[395848545,1764730246813,-500.0,0.00011613,2]
[395848547,1764730246822,-500.0,0.00011613,2]
[395848549,1764730246831,-500.0,0.00011613,2]
[395848551,1764730246840,-500.0,0.00011613,2]
[395848553,1764730246850,-500.0,0.00011613,2]
[395848555,1764730246860,-500.0,0.00011613,2]
[395848557,1764730246869,-500.0,0.00011613,2]
[395848559,1764730246878,-500.0,0.00011613,2]
[395848561,1764730246887,-500.0,0.00011613,2]
[395848563,1764730246897,-500.0,0.00011613,2]
[395848565,1764730246906,-1440.54,0.00011613,2]
[395848567,1764730246917,-500.0,0.00011613,2]
[395848569,1764730246928,-500.0,0.00011613,2]
[395848572,1764730246945,-1074.76,0.00011613,2]
[395848573,1764730246958,-500.0,0.00011613,2]
[395848575,1764730246967,-760.48,0.00011613,2]
[395848577,1764730246976,-500.0,0.00011613,2]
[395848579,1764730246989,-500.0,0.00011613,2]
[395848582,1764730246999,-676.9,0.00011613,2]
[395848583,1764730247009,-570.81,0.00011613,2]
[395848585,1764730247018,-500.0,0.00011613,2]
[395848587,1764730247029,-919.98,0.00011613,2]
[395848589,1764730247038,-500.0,0.00011613,2]
[395848591,1764730247047,-875.31,0.00011613,2]
[395848593,1764730247057,-755.52,0.00011613,2]
[395848595,1764730247066,-500.0,0.00011613,2]
[395848598,1764730247078,-505.6874474,0.00011613,2]
[395848600,1764730247088,-640.6,0.00011613,2]
[395848601,1764730247100,-500.0,0.00011613,2]
[395848603,1764730247111,-946.76,0.00011613,2]
[395848606,1764730247122,-1026.4,0.00011613,2]
[395848608,1764730247132,-500.0,0.00011613,2]
[395848610,1764730247143,-500.0,0.00011613,2]
[395848612,1764730247155,-605.93,0.00011613,2]
[395848614,1764730247164,-521.82,0.00011613,2]
[395848616,1764730247173,-500.0,0.00011613,2]
[395848618,1764730247182,-656.13,0.00011613,2]
[395848619,1764730247193,-500.0,0.00011613,2]
[395848621,1764730247202,-500.0,0.00011613,2]
[395848623,1764730247211,-500.0,0.00011613,2]
[395848625,1764730247221,-500.0,0.00011613,2]
[395848627,1764730247231,-605.14,0.00011613,2]
[395848629,1764730247240,-1234.95,0.00011613,2]
[395848631,1764730247250,-151.0,0.00011613,2]
[395848633,1764730247260,-151.0,0.00011613,2]
[395848635,1764730247270,-853.36,0.00011613,2]
[395848637,1764730247280,-500.0,0.00011613,2]
[395848639,1764730247289,-655.91,0.00011613,2]
[395848641,1764730247298,-500.0,0.00011613,2]
[395848643,1764730247308,-500.0,0.00011613,2]
[395848645,1764730247317,-808.73,0.00011613,2]
[395848647,1764730247326,-500.0,0.00011613,2]
[395848649,1764730247336,-500.0,0.00011613,2]
[395848651,1764730247346,-4954.61,0.00011613,2]
[395848653,1764730247355,-500.0,0.00011613,2]
[395848661,1764730247416,-540.62,0.00011613,2]
[395848663,1764730247426,-500.0,0.00011613,2]
[395848665,1764730247436,-500.0,0.00011613,2]
[395848667,1764730247446,-1087.18,0.00011613,2]
[395848669,1764730247455,-744.5,0.00011613,2]
[395848671,1764730247464,-151.0,0.00011613,2]
[395848673,1764730247474,-500.0,0.00011613,2]
[395848675,1764730247483,-500.0,0.00011613,2]
[395848677,1764730247493,-500.0,0.00011613,2]
[395848679,1764730247503,-986.65,0.00011613,2]
[395848681,1764730247512,-500.0,0.00011613,2]
[395848683,1764730247523,-620.99,0.00011613,2]
[395848685,1764730247531,-595.38,0.00011613,2]
[395848687,1764730247540,-650.6,0.00011613,2]
[395848689,1764730247550,-839.65,0.00011613,2]
[395848691,1764730247559,-500.0,0.00011613,2]
[395848693,1764730247567,-500.0,0.00011613,2]
[395848695,1764730247577,-993.85,0.00011613,2]
[395848697,1764730247586,-500.0,0.00011613,2]
[395848699,1764730247595,-679.78,0.00011613,2]
[395848701,1764730247604,-1880.3,0.00011613,2]
[395848702,1764730247614,-500.0,0.00011613,2]
[395848704,1764730247624,-1448.11,0.00011613,2]
[395848706,1764730247633,-1276.28,0.00011613,2]
[395848708,1764730247642,-500.0,0.00011613,2]
[395848710,1764730247651,-541.63,0.00011613,2]
[395848712,1764730247660,-500.0,0.00011613,2]
[395848714,1764730247670,-861.45,0.00011613,2]
[395848716,1764730247679,-630.92,0.00011613,2]
[395848718,1764730247688,-500.0,0.00011613,2]
[395848720,1764730247698,-1197.3,0.00011613,2]
[395848722,1764730247707,-507.72,0.00011613,2]
[395848724,1764730247716,-4394.75,0.00011613,2]
[395848726,1764730247726,-502.97520689,0.00011613,2]
[395848728,1764730247735,-500.0,0.00011613,2]
[395848730,1764730247745,-514.8,0.00011613,2]
[395848731,1764730247756,-1515.87,0.00011613,2]
[395848733,1764730247765,-514.64,0.00011613,2]
[395848735,1764730247774,-947.88,0.00011613,2]
[395848737,1764730247782,-515.49,0.00011613,2]
[395848739,1764730247791,-2584.88,0.00011613,2]
[395848741,1764730247801,-500.0,0.00011613,2]
[395848743,1764730247810,-536.58,0.00011613,2]
[395848745,1764730247820,-151.0,0.00011614,2]
[395848747,1764730247829,-1696.61,0.00011614,2]
[395848749,1764730247838,-500.0,0.00011614,2]
[395848751,1764730247848,-560.9,0.00011614,2]
[395848753,1764730247857,-500.0,0.00011614,2]
[395848755,1764730247867,-3514.13,0.00011614,2]
[395848757,1764730247875,-2507.93,0.00011614,2]
[395848759,1764730247885,-8867.94,0.00011614,2]
[395848761,1764730247895,-500.0,0.00011616,2]
[395848763,1764730247904,-819.65,0.00011616,2]
[395848765,1764730247916,-500.0,0.00011616,2]
[395848767,1764730247925,-500.0,0.00011616,2]
[395848769,1764730247935,-500.0,0.00011616,2]
[395848771,1764730247945,-634.42754026,0.00011616,2]
[395848773,1764730247954,-500.0,0.00011616,2]
[395848774,1764730247963,-500.0,0.00011616,2]
[395848776,1764730247973,-500.0,0.00011616,2]
[395848778,1764730247983,-500.0,0.00011616,2]
[395848780,1764730247992,-500.0,0.00011616,2]
[395848782,1764730248002,-719.88,0.00011616,2]
[395848784,1764730248011,-500.0,0.00011616,2]
[395848786,1764730248020,-737.81,0.00011616,2]
[395848788,1764730248030,-503.26578983,0.00011616,2]
[395848790,1764730248040,-503.19739768,0.00011616,2]
[395848792,1764730248049,-151.70492,0.00011616,2]
[395848794,1764730248059,-500.0,0.00011616,2]
[395848796,1764730248068,-500.0,0.00011616,2]
[395848798,1764730248078,-331.43971546,0.00011616,2]
[395848800,1764730248087,-500.0,0.00011616,2]
[395848802,1764730248096,-500.0,0.00011616,2]
[395848804,1764730248104,-500.0,0.00011616,2]
[395848806,1764730248113,-500.0,0.00011616,2]
[395848808,1764730248122,-505.32,0.00011616,2]
[395848810,1764730248131,-532.88,0.00011616,2]
[395848812,1764730248140,-621.8,0.00011616,2]
[395848814,1764730248153,-500.0,0.00011616,2]
[395848816,1764730248162,-500.0,0.00011616,2]
[395848818,1764730248171,-773.12,0.00011616,2]
[395848820,1764730248181,-610.35524398,0.00011616,2]
[395848822,1764730248193,-500.0,0.00011616,2]
[395848824,1764730248202,-508.6,0.00011616,2]
[395848826,1764730248211,-500.0,0.00011616,2]
[395848828,1764730248219,-500.0,0.00011616,2]
[395848830,1764730248231,-500.0,0.00011616,2]
[395848832,1764730248240,-500.0,0.00011616,2]
[395848834,1764730248249,-500.0,0.00011616,2]
[395848836,1764730248258,-500.0,0.00011616,2]
[395848837,1764730248267,-500.0,0.00011616,2]
[395848839,1764730248276,-1159.06,0.00011616,2]
[395848841,1764730248285,-587.59,0.00011616,2]
[395848843,1764730248294,-500.0,0.00011616,2]
[395848845,1764730248303,-899.56,0.00011616,2]
[395848847,1764730248312,-601.85,0.00011616,2]
[395848849,1764730248321,-500.0,0.00011616,2]
[395848851,1764730248330,-500.0,0.00011616,2]
[395848853,1764730248340,-500.0,0.00011616,2]
[395848855,1764730248349,-500.0,0.00011616,2]
[395848857,1764730248358,-592.06,0.00011616,2]
[395848859,1764730248367,-500.0,0.00011616,2]
[395848861,1764730248376,-505.68619947,0.00011616,2]
[395848863,1764730248386,-292.60391382,0.00011616,2]
[395848865,1764730248396,-500.0,0.00011616,2]
[395848867,1764730248405,-500.0,0.00011616,2]
[395848869,1764730248416,-500.0,0.00011616,2]
[395848871,1764730248425,-799.39,0.00011616,2]
[395848873,1764730248434,-504.45343291,0.00011616,2]
[395848875,1764730248444,-576.11,0.00011616,2]
[395848877,1764730248454,-802.24,0.00011616,2]
[395848879,1764730248462,-500.0,0.00011616,2]
[395848881,1764730248471,-500.0,0.00011616,2]
[395848883,1764730248481,-500.0,0.00011616,2]
[395848885,1764730248490,-1495.74,0.00011616,2]
[395848887,1764730248500,-500.0,0.00011616,2]
[395848889,1764730248509,-500.0,0.00011616,2]
[395848891,1764730248518,-500.0,0.00011616,2]
[395848893,1764730248529,-614.39,0.00011616,2]
[395848895,1764730248538,-500.0,0.00011616,2]
[395848896,1764730248547,-500.0,0.00011616,2]
[395848898,1764730248556,-500.0,0.00011616,2]
[395848900,1764730248566,-500.0,0.00011616,2]
[395848902,1764730248575,-500.0,0.00011616,2]
[395848904,1764730248585,-500.0,0.00011616,2]
[395848906,1764730248594,-500.0,0.00011616,2]
[395848908,1764730248604,-500.0,0.00011616,2]
[395848910,1764730248613,-500.0,0.00011616,2]
[395848912,1764730248622,-500.0,0.00011616,2]
[395848914,1764730248631,-545.36,0.00011616,2]
[395848916,1764730248640,-500.0,0.00011616,2]
[395848918,1764730248649,-500.0,0.00011616,2]
[395848920,1764730248658,-500.0,0.00011616,2]
[395848922,1764730248667,-500.0,0.00011616,2]
[395848924,1764730248676,-642.52,0.00011616,2]
[395848926,1764730248685,-1424.18,0.00011616,2]
[395848928,1764730248694,-517.11596723,0.00011616,2]
[395848930,1764730248703,-500.0,0.00011616,2]
[395848932,1764730248712,-500.0,0.00011616,2]
[395848934,1764730248722,-634.68,0.00011616,2]
[395848936,1764730248730,-500.0,0.00011616,2]
[395848938,1764730248740,-500.0,0.00011616,2]
[395848940,1764730248749,-627.3,0.00011616,2]
[395848942,1764730248759,-500.0,0.00011616,2]
[395848944,1764730248768,-720.85,0.00011616,2]
[395848946,1764730248777,-500.0,0.00011616,2]
[395848948,1764730248787,-500.0,0.00011616,2]
[395848950,1764730248796,-920.42,0.00011616,2]
[395848952,1764730248806,-500.0,0.00011616,2]
[395848954,1764730248815,-500.0,0.00011616,2]
[395848956,1764730248825,-691.24,0.00011616,2]
[395848958,1764730248834,-500.0,0.00011616,2]
[395848960,1764730248843,-500.0,0.00011616,2]
[395848962,1764730248852,-502.67432575,0.00011616,2]
[395848964,1764730248861,-500.0,0.00011616,2]
[395848966,1764730248871,-500.0,0.00011616,2]
[395848968,1764730248880,-500.0,0.00011616,2]
[395848970,1764730248889,-1309.36,0.00011616,2]
[395848972,1764730248898,-682.61,0.00011616,2]
[395848974,1764730248907,-638.92,0.00011616,2]
[395848976,1764730248916,-500.0,0.00011616,2]
[395848978,1764730248926,-500.0,0.00011616,2]
[395848980,1764730248936,-500.0,0.00011616,2]
[395848982,1764730248945,-500.0,0.00011616,2]
[395848984,1764730248955,-500.0,0.00011616,2]
[395848985,1764730248965,-500.0,0.00011616,2]
[395848988,1764730248975,-500.0,0.00011616,2]
[395848990,1764730248984,-734.04,0.00011616,2]
[395848992,1764730248995,-610.29,0.00011616,2]
[395848994,1764730249004,-803.87,0.00011616,2]
[395848996,1764730249014,-461.81314818,0.00011616,2]
[395848998,1764730249024,-373.32970117,0.00011616,2]
[395849000,1764730249034,-521.83,0.00011616,2]
[395849002,1764730249043,-1089.77,0.00011616,2]
[395849004,1764730249052,-500.0,0.00011616,2]
[395849006,1764730249063,-500.0,0.00011616,2]
[395849008,1764730249073,-505.21790907,0.00011616,2]
[395849010,1764730249082,-500.0,0.00011616,2]
[395849012,1764730249091,-500.0,0.00011616,2]
[395849014,1764730249100,-1484.87,0.00011616,2]
[395849016,1764730249109,-500.0,0.00011616,2]
[395849018,1764730249118,-500.0,0.00011616,2]
[395849020,1764730249127,-500.0,0.00011616,2]
[395849022,1764730249136,-503.44137843,0.00011616,2]
[395849023,1764730249147,-500.0,0.00011616,2]
[395849025,1764730249158,-511.77,0.00011616,2]
[395849027,1764730249167,-690.3,0.00011616,2]
[395849029,1764730249176,-500.0,0.00011616,2]
[395849031,1764730249186,-500.0,0.00011616,2]
[395849033,1764730249195,-500.0,0.00011616,2]
[395849035,1764730249205,-759.89,0.00011616,2]
[395849037,1764730249214,-500.0,0.00011616,2]
[395849039,1764730249225,-500.0,0.00011616,2]
[395849041,1764730249235,-911.09,0.00011616,2]
[395849043,1764730249245,-548.61,0.00011616,2]
[395849045,1764730249254,-500.0,0.00011616,2]
[395849047,1764730249264,-500.0,0.00011616,2]
[395849049,1764730249272,-972.83,0.00011616,2]
[395849050,1764730249283,-597.22,0.00011616,2]
[395849051,1764730249292,-1290.22,0.00011616,2]
[395849052,1764730249300,-693.01,0.00011616,2]
[395849053,1764730249309,-536.56,0.00011616,2]
[395849054,1764730249318,-675.83,0.00011616,2]
[395849055,1764730249327,-543.32,0.00011616,2]
[395849056,1764730249336,-816.77,0.00011616,2]
[395849057,1764730249344,-2126.16,0.00011616,2]
[395849058,1764730249353,-500.0,0.00011616,2]
[395849059,1764730249362,-570.466741,0.00011616,2]
[395849060,1764730249371,-500.0,0.00011616,2]
[395849061,1764730249380,-500.0,0.00011616,2]
[395849062,1764730249390,-1760.7,0.00011616,2]
[395849063,1764730249399,-500.0,0.00011616,2]
[395849064,1764730249407,-500.0,0.00011616,2]
[395849065,1764730249416,-500.0,0.00011616,2]
[395849066,1764730249426,-500.0,0.00011616,2]
[395849067,1764730249435,-500.0,0.00011616,2]
[395849068,1764730249444,-500.0,0.00011616,2]
[395849069,1764730249453,-542.3,0.00011616,2]
[395849070,1764730249462,-596.56,0.00011616,2]
[395849071,1764730249471,-530.48,0.00011616,2]
[395849072,1764730249479,-500.0,0.00011616,2]
[395849073,1764730249488,-948.52,0.00011616,2]
[395849074,1764730249497,-500.0,0.00011616,2]
[395849075,1764730249506,-681.58,0.00011616,2]
[395849077,1764730249515,-500.0,0.00011616,2]
[395849078,1764730249524,-500.0,0.00011616,2]
[395849080,1764730249533,-500.0,0.00011621,2]
[395849082,1764730249543,-5739.3194588,0.0001163,2]
[395849084,1764730249552,-151.0,0.0001163,2]
[395849086,1764730249563,-177.48357326,0.0001163,2]
[395849088,1764730249572,-151.28092649,0.0001163,2]
[395849090,1764730249581,-264.07504751,0.0001163,2]
[395849092,1764730249591,-475.33508551,0.0001163,2]
[395849094,1764730249600,-222.3599804,0.0001163,2]
[395849096,1764730249609,-400.24796472,0.0001163,2]
[395849097,1764730249619,-151.0,0.0001163,2]
[395849099,1764730249629,-151.0,0.0001163,2]
[395849101,1764730249638,-151.0,0.0001163,2]
[395849103,1764730249647,-516.91745109,0.00011633,2]
[395849105,1764730249656,-251.11897888,0.00011661,2]
[395849107,1764730249665,-151.0,0.000117,2]
[395849109,1764730249675,-151.0,0.000117,2]
[395849111,1764730249685,-260.4103811,0.00011716,2]
[395849113,1764730249694,-151.0,0.00011767,2]
[395849115,1764730249703,-151.0,0.00011767,2]
[395849117,1764730249712,-270.0455652,0.00011771,2]
[395849119,1764730249721,-157.74207793,0.0001179,2]
[395849121,1764730249730,-151.0,0.000118,2]
[395849123,1764730249739,-151.0,0.000118,2]
[395849125,1764730249749,-600.0,0.00011819,2]
[395849127,1764730249758,-280.03725112,0.00011826,2]
[395849129,1764730249767,-290.39862941,0.00011881,2]
[395849131,1764730249776,-513.39,0.00011881,2]
[395849133,1764730249785,-2188.59,0.00011882,2]
[395849135,1764730249795,-914.87,0.00011882,2]
[395849137,1764730249804,-757.21,0.00011882,2]
[395849139,1764730249813,-631.43,0.00011882,2]
[395849141,1764730249823,-500.0,0.00011882,2]
[395849143,1764730249832,-5715.04,0.00011882,2]
[395849145,1764730249841,-3800.0,0.00011882,2]
[395849147,1764730249851,-4190.39,0.00011882,2]
[395849149,1764730249861,-500.0,0.00011882,2]
[395849151,1764730249871,-500.0,0.00011882,2]
[395849153,1764730249880,-906.02,0.00011882,2]
[395849154,1764730249889,-500.0,0.00011882,2]
[395849156,1764730249898,-593.92,0.00011882,2]
[395849158,1764730249907,-1238.71,0.00011882,2]
[395849160,1764730249917,-949.72,0.00011882,2]
[395849162,1764730249926,-500.0,0.00011882,2]
[395849164,1764730249935,-905.02,0.00011882,2]
[395849166,1764730249944,-500.0,0.00011882,2]
[395849168,1764730249953,-500.0,0.00011885,2]
[395849170,1764730249963,-500.0,0.00011885,2]
[395849172,1764730249972,-535.86,0.00011885,2]
[395849174,1764730249982,-500.0,0.00011885,2]